bitfinex-derivatives/quotes_ETHF0:USTF0_20240913
["timestamp","ask_amount","ask_price","bid_price","bid_amount"]
[1726239423519,5.82168391,2366.7,2366.5,3.72254]
[1726239423520,5.26889113,2366.7,2366.5,3.72254]
[1726239423716,2.21117113,2366.6,2366.5,3.72254]
[1726239424016,2.63369113,2366.6,2366.5,3.3]
[1726239424521,0.42252,2366.6,2366.4,0.42254]
[1726239424721,2.2112694,2366.5,2366.4,0.42254]
[1726239425026,5.82167391,2366.7,2366.5,0.42254]
[1726239425027,2.2112694,2366.6,2366.5,0.42254]
[1726239425416,2.2112694,2366.6,2366.5,3.72254]
[1726239425639,2.2115187,2366.7,2366.6,0.42252]
[1726239425913,2.6340187,2366.7,2366.5,3.72253]
[1726239426125,2.6340187,2366.7,2366.6,0.42252]
[1726239426126,2.63397806,2366.7,2366.6,0.42252]
[1726239426329,2.21147806,2366.7,2366.6,0.42252]
[1726239426825,2.21147806,2366.7,2366.6,1.70082]
[1726239427218,2.21147806,2366.7,2366.6,9.22642]
[1726239427418,2.21147806,2366.8,2366.7,0.4225]
[1726239427821,2.21147806,2366.9,2366.8,0.42249]
[1726239428027,2.21147806,2366.9,2366.8,3.72249]
[1726239428216,2.21147806,2366.9,2366.8,0.42249]
[1726239429312,2.21147806,2367.0,2366.8,0.42249]
[1726239429516,0.42245,2367.0,2366.9,0.42247]
[1726239429728,5.97176391,2367.1,2366.8,0.42247]
[1726239429923,2.20997482,2366.9,2366.8,0.42247]
[1726239430624,2.20997482,2366.9,2366.7,3.72249]
[1726239430822,2.20997482,2366.9,2366.8,0.42249]
[1726239431027,2.20997482,2366.9,2366.8,3.63029]
[1726239431324,2.20997482,2367.1,2367.0,0.42245]
[1726239431527,3.85530482,2367.2,2367.0,0.42245]
[1726239431719,3.85530482,2367.2,2366.8,6.5078]
[1726239431913,3.43287482,2367.2,2366.9,0.42245]
[1726239432239,0.42246,2367.0,2366.8,0.42248]
[1726239432526,5.84022482,2367.1,2366.8,0.42248]
[1726239432835,5.84022482,2367.1,2366.9,0.42247]
[1726239433022,2.20997482,2367.1,2366.9,0.42245]
[1726239433218,2.20997482,2367.1,2367.0,0.42245]
[1726239433419,3.85529482,2367.2,2367.0,0.42245]
[1726239434730,2.63238482,2367.2,2367.0,0.42244]
[1726239437433,2.20997482,2367.2,2367.1,0.42243]
[1726239437736,2.20997482,2367.2,2367.0,0.42244]
[1726239437737,2.63238482,2367.2,2367.0,0.42244]
[1726239438423,0.42241,2367.2,2367.0,0.42244]
[1726239438932,0.42242,2367.2,2367.0,0.42244]
[1726239439234,0.42243,2367.2,2367.0,0.42244]
[1726239441320,3.45487482,2367.3,2367.1,0.42242]
[1726239441521,3.45487482,2367.3,2367.2,0.42241]
[1726239441720,1.2449,2367.3,2367.2,0.42241]
[1726239442430,1.6673,2367.3,2367.2,0.42241]
[1726239442653,1.6673,2367.3,2366.9,2.25087]
[1726239442829,1.2449,2367.3,2366.9,1.61715]
[1726239443031,0.42243,2367.1,2367.0,0.42245]
[1726239443331,0.42242,2367.2,2367.0,0.42244]
[1726239443531,0.42242,2367.2,2367.0,0.42245]
[1726239443722,3.45487482,2367.3,2367.0,0.42245]
[1726239443723,0.42243,2367.1,2367.0,0.42245]
[1726239443922,3.87728482,2367.3,2367.1,0.42243]
[1726239444129,3.45487482,2367.3,2367.2,0.42241]
[1726239444338,1.2449,2367.3,2367.2,0.42241]
[1726239444643,3.53147482,2367.4,2367.0,3.3]
[1726239444644,3.53147482,2367.4,2367.3,0.4224]
[1726239444831,3.95386482,2367.4,2367.3,0.4224]
[1726239445337,1.74389,2367.4,2367.3,0.4224]
[1726239445526,3.40537482,2367.5,2367.2,4.5255]
[1726239445728,2.20997482,2367.8,2367.3,12.0011]
[1726239445932,2.20997482,2367.8,2367.3,7.7771]
[1726239446139,0.42235,2367.6,2367.4,0.42237]
[1726239446327,3.47497482,2367.9,2367.4,0.42237]
[1726239446328,0.42234,2367.7,2367.4,0.42237]
[1726239446526,2.63230482,2367.7,2367.5,0.42236]
[1726239446735,0.42232,2367.7,2367.5,0.42236]
[1726239446930,5.84008482,2367.8,2367.4,3.3]
[1726239447132,5.41777482,2367.8,2367.4,3.3]
[1726239447334,3.63012,2367.8,2367.6,0.42234]
[1726239447527,3.2078,2367.8,2367.6,0.42234]
[1726239447742,3.2078,2367.8,2367.4,3.3]
[1726239447934,3.2078,2367.8,2367.3,1.2693]
[1726239447935,3.2078,2367.8,2367.7,0.42232]
[1726239448130,1.265,2367.9,2367.8,0.42231]
[1726239448835,1.1954,2368.0,2367.8,0.42231]
[1726239449241,5.41777482,2368.1,2367.7,5.7157]
[1726239449542,3.2078,2368.1,2367.9,0.42227]
[1726239449840,0.42227,2368.0,2367.7,2.83802]
[1726239450034,3.2078,2368.1,2367.7,2.4157]
[1726239450235,0.4223,2367.9,2367.1,7.4058]
[1726239450445,0.42231,2367.8,2367.6,1.73083]
[1726239450648,0.42228,2368.0,2367.7,1.73402]
[1726239450941,3.2078,2368.1,2367.9,0.42228]
[1726239451645,3.2078,2368.1,2367.8,1.2225]
[1726239451833,3.2078,2368.1,2368.0,0.42227]
[1726239452746,2.5373,2368.2,2368.1,0.42225]
[1726239453047,4.35549,2368.5,2368.0,3.3]
[1726239453048,2.20997482,2368.5,2368.0,3.3]
[1726239453246,0.42222,2368.3,2367.8,4.5225]
[1726239453546,0.42223,2368.3,2367.9,1.3186]
[1726239454046,3.63001,2368.4,2368.1,0.42225]
[1726239454344,0.42222,2368.3,2368.2,1.2278]
[1726239454544,3.63001,2368.4,2368.2,1.2278]
[1726239454744,3.10411299,2368.8,2368.3,4.2224]
[1726239454745,5.7579239,2368.8,2368.3,4.2224]
[1726239454940,3.2078,2368.8,2368.7,0.42215]
[1726239455141,3.2078,2368.8,2368.7,3.72215]
[1726239455343,3.2078,2368.8,2368.7,0.42215]
[1726239455671,3.2078,2369.3,2368.8,1.05533]
[1726239455942,3.2078,2369.3,2369.1,3.72206]
[1726239456246,3.2078,2369.3,2369.1,0.42206]
[1726239456448,3.2078,2369.3,2369.0,0.42208]
[1726239456449,0.42206,2369.2,2369.0,0.42208]
[1726239456633,0.42208,2369.1,2368.9,5.0407]
[1726239456837,0.42207,2369.2,2369.0,0.42209]
[1726239457044,1.1942,2369.1,2369.0,0.42209]
[1726239457237,1.1942,2369.1,2368.9,4.6186]
[1726239457238,3.2078,2369.3,2368.9,4.6186]
[1726239457548,3.62986,2369.3,2368.9,4.6186]
[1726239457750,3.62986,2369.3,2369.1,0.42206]
[1726239457950,3.2078,2369.3,2369.2,0.42206]
[1726239460541,1.64799,2369.6,2369.4,0.42202]
[1726239460742,0.42199,2369.6,2369.4,0.42202]
[1726239461149,0.42199,2369.6,2369.3,1.2127]
[1726239461150,0.42198,2369.7,2369.5,0.422]
[1726239461351,0.42197,2369.7,2369.4,1.2323]
[1726239461543,5.6906,2369.8,2369.7,0.42197]
[1726239461743,4.83746,2369.8,2369.4,4.5323]
[1726239462052,0.2,2370.0,2369.9,0.42193]
[1726239462247,2.42610018,2370.7,2369.9,0.42193]
[1726239462248,0.213,2370.8,2370.3,0.42185]
[1726239462641,0.213,2370.8,2370.3,3.2078]
[1726239462642,3.2078,2370.8,2370.3,3.2078]
[1726239462688,3.2078,2370.8,2370.4,3.3]
[1726239462951,0.42179,2370.7,2370.2,3.72187]
[1726239463147,3.2078,2370.8,2370.4,3.3]
[1726239463344,3.2078,2370.8,2370.2,3.3]
[1726239463546,3.2078,2370.8,2370.4,3.3]
[1726239463750,3.62958,2370.8,2370.4,3.3]
[1726239463952,3.2078,2371.0,2370.1,3.2078]
[1726239464146,3.2078,2371.0,2370.4,3.3]
[1726239464657,3.62954,2371.0,2370.4,3.3]
[1726239464858,3.2078,2371.0,2370.4,3.3]
[1726239465157,3.62954,2371.0,2370.4,3.3]
[1726239465851,3.2078,2371.0,2370.3,4.508]
[1726239466042,3.2078,2371.0,2370.5,3.3]
[1726239466244,3.62954,2371.0,2370.6,1.2743]
[1726239466446,3.2078,2371.0,2370.6,1.2743]
[1726239466642,3.62954,2371.0,2370.6,1.2743]
[1726239466852,3.2078,2371.0,2370.6,1.2743]
[1726239467048,3.2078,2371.0,2370.7,3.3]
[1726239467454,3.2078,2371.0,2370.2,3.3]
[1726239467455,4.2176,2370.9,2370.2,3.3]
[1726239467758,0.42176,2370.9,2370.4,6.5078]
[1726239468054,6.5078,2371.0,2370.2,3.3]
[1726239468256,2.4735,2370.9,2370.2,3.3]
[1726239468449,0.42177,2370.8,2370.2,3.3]
[1726239468665,0.42178,2370.8,2370.2,3.3]
[1726239468958,3.2078,2370.7,2370.2,3.3]
[1726239469259,1.2724,2370.9,2370.4,3.3]
[1726239469449,1.2724,2370.9,2370.5,1.214]
[1726239469645,1.2724,2370.9,2370.5,2.5318]
[1726239470247,1.2724,2370.9,2370.5,1.214]
[1726239470452,1.2724,2370.9,2370.2,3.3]
[1726239470453,3.6296,2370.7,2370.2,3.3]
[1726239470948,3.6296,2370.7,2369.6,3.2078]
[1726239470949,3.2078,2370.4,2369.6,3.2078]
[1726239471149,3.2078,2369.8,2369.4,1.214]
[1726239471357,0.42198,2369.7,2369.3,1.3178]
[1726239471559,3.2078,2369.8,2369.3,1.3178]
[1726239471859,0.42203,2369.4,2369.1,3.3]
[1726239472055,3.2078,2369.5,2369.1,3.3]
[1726239472255,1.3045,2369.7,2368.7,2.4316]
[1726239472256,3.2078,2369.2,2368.7,2.4316]
[1726239472451,3.2078,2369.5,2368.9,3.3]
[1726239472753,4.5789,2369.6,2369.3,3.3]
[1726239472754,1.2789,2369.6,2369.3,3.3]
[1726239472955,3.2078,2369.8,2369.1,3.3]
[1726239472956,0.42202,2369.4,2369.1,3.3]
[1726239473258,0.42202,2369.4,2368.7,5.6394]
[1726239473259,4.4867,2369.8,2369.0,0.42208]
[1726239473454,3.2078,2369.5,2368.9,3.3]
[1726239473646,3.2078,2369.5,2368.9,3.7221]
[1726239473850,3.2078,2369.3,2368.9,3.3]
[1726239474256,0.42205,2369.3,2368.7,6.15373]
[1726239474449,0.42205,2369.3,2368.8,0.42212]
[1726239474652,3.2078,2369.3,2368.7,8.9394]
[1726239474848,0.42204,2369.3,2368.7,8.9394]
[1726239475059,3.2078,2369.3,2368.7,8.9394]
[1726239475567,3.2078,2369.3,2368.7,2.4316]
[1726239475858,1.2445,2369.2,2368.7,2.4316]
[1726239476160,3.2078,2369.0,2368.7,2.4316]
[1726239476359,0.4221,2369.0,2368.7,2.4316]
[1726239476956,0.42212,2368.9,2368.7,1.2168]
[1726239477162,0.42216,2368.7,2368.4,3.2078]
[1726239477355,3.2078,2368.9,2368.2,4.5847]
[1726239477548,0.42217,2368.6,2368.2,4.5847]
[1726239477854,0.42218,2368.6,2368.2,4.5847]
[1726239478061,3.2078,2368.7,2368.2,5.00693]
[1726239478251,0.4222,2368.4,2368.2,1.2847]
[1726239478454,3.2078,2368.5,2368.2,1.2847]
[1726239478968,0.42223,2368.3,2368.0,3.3]
[1726239479159,7.4302,2368.5,2368.0,3.3]
[1726239479160,3.2078,2368.5,2368.0,3.3]
[1726239479354,3.2078,2368.5,2368.4,3.3]
[1726239479862,3.2078,2368.5,2368.2,4.4989]
[1726239480062,3.62999,2368.5,2368.2,1.1989]
[1726239480247,3.2078,2368.5,2368.2,1.62112]
[1726239480448,3.2078,2368.5,2368.2,1.1989]
[1726239480648,0.42221,2368.4,2368.2,1.1989]
[1726239480855,7.4302,2368.5,2367.9,3.3]
[1726239481157,3.2078,2368.5,2368.4,0.4222]
[1726239481413,3.2078,2368.5,2368.4,3.7222]
[1726239481574,3.2078,2369.0,2368.8,0.42212]
[1726239481747,0.42207,2369.2,2368.9,0.4221]
[1726239481947,5.8186,2369.3,2368.7,3.3]
[1726239482158,3.2078,2369.0,2368.5,5.8243]
[1726239482454,3.2078,2369.0,2368.9,0.42211]
[1726239482655,3.6299,2369.0,2368.7,3.3]
[1726239482860,3.2078,2369.0,2368.9,0.42211]
[1726239483161,3.62989,2369.0,2368.7,0.42213]
[1726239483555,3.2078,2369.0,2368.8,0.42212]
[1726239483756,3.2078,2369.0,2368.9,0.42211]
[1726239484167,3.2078,2369.0,2368.8,0.42212]
[1726239484360,3.2078,2369.0,2368.9,0.42211]
[1726239484765,3.62985,2369.3,2369.1,0.42207]
[1726239485166,3.2078,2369.3,2369.0,0.42208]
[1726239485462,0.42206,2369.2,2369.0,0.42208]
[1726239485665,3.2078,2369.3,2368.8,0.42212]
[1726239485865,3.2078,2369.3,2368.5,5.7321]
[1726239486078,0.42207,2369.2,2368.9,0.4221]
[1726239486471,3.2078,2369.3,2368.9,0.4221]
[1726239486472,0.42208,2369.1,2368.9,0.4221]
[1726239486767,3.62989,2369.0,2368.8,0.42212]
[1726239487469,3.2078,2369.0,2368.8,0.42212]
[1726239487767,0.42212,2368.9,2368.7,0.42214]
[1726239487958,3.6299,2369.0,2368.7,0.42213]
[1726239488170,0.42211,2368.9,2368.7,0.42213]
[1726239488365,3.2078,2369.0,2368.8,0.42212]
[1726239488666,0.42209,2369.1,2368.9,0.42211]
[1726239488860,3.2078,2369.3,2368.9,0.42211]
[1726239489060,0.42207,2369.2,2369.0,0.42209]
[1726239489265,0.42207,2369.2,2368.9,0.4221]
[1726239489466,0.42209,2369.1,2368.5,5.7321]
[1726239489667,0.42207,2369.2,2368.9,0.42211]
[1726239489863,3.2078,2369.3,2368.9,0.42211]
[1726239490068,0.42208,2369.1,2368.9,0.42211]
[1726239490674,0.42207,2369.2,2368.9,0.42211]
[1726239490973,3.62985,2369.3,2369.1,0.42206]
[1726239491160,3.2078,2369.3,2369.2,0.42206]
[1726239492264,0.422,2369.6,2369.4,0.42201]
[1726239492468,0.42201,2369.5,2369.4,0.42201]
[1726239492667,0.42201,2369.5,2369.1,1.2314]
[1726239492965,0.422,2369.6,2369.4,0.42202]
[1726239493159,0.422,2369.5,2369.4,0.42202]
[1726239493359,0.422,2369.5,2369.1,1.2314]
[1726239493360,0.422,2369.6,2369.1,2.28658]
[1726239493565,3.2078,2369.7,2369.6,0.42199]
[1726239493814,0.213,2370.2,2369.7,1.05493]
[1726239493815,3.2078,2370.2,2369.7,1.05493]
[1726239493996,4.11873272,2370.3,2370.2,0.42188]
[1726239493997,0.42187,2370.3,2370.2,0.42188]
[1726239494170,0.42188,2370.2,2370.1,0.42188]
[1726239494368,1.05463,2370.4,2369.8,2.28057]
[1726239494565,0.42188,2370.2,2370.1,0.42189]
[1726239495161,0.4219,2370.1,2370.0,0.4219]
[1726239495373,3.2078,2370.3,2369.8,1.2257]
[1726239495562,0.42187,2370.3,2370.1,0.42188]
[1726239495764,1.05457,2370.5,2369.8,1.2257]
[1726239496072,0.4219,2370.1,2370.0,0.4219]
[1726239496388,3.2078,2370.3,2369.8,1.2257]
[1726239496389,4.26248,2370.3,2369.8,1.2257]
[1726239496682,4.26248,2370.3,2369.4,1.05503]
[1726239496683,1.0549,2369.8,2369.4,1.73302]
[1726239496971,0.422,2369.6,2369.4,1.73302]
[1726239497164,0.42199,2369.6,2369.4,1.73302]
[1726239497363,0.42203,2369.4,2369.2,1.62254]
[1726239497564,3.2078,2369.6,2369.2,1.2005]
[1726239497761,0.42201,2369.5,2369.3,0.42203]
[1726239497966,3.62981,2369.5,2369.3,0.42204]
[1726239498263,0.42201,2369.5,2369.2,1.62255]
[1726239498468,1.2841,2369.7,2369.2,1.62255]
[1726239498469,3.6298,2369.6,2369.2,1.62255]
[1726239498663,3.2078,2369.6,2369.3,0.42204]
[1726239498868,3.62979,2369.6,2369.2,1.62255]
[1726239499063,3.62979,2369.6,2369.2,1.2005]
[1726239499270,3.62979,2369.6,2369.3,0.42204]
[1726239499569,0.42201,2369.5,2369.2,1.2005]
[1726239499771,3.62979,2369.6,2369.3,0.42203]
[1726239499969,3.62979,2369.6,2369.2,1.62255]
[1726239500275,3.62979,2369.6,2369.2,1.2005]
[1726239500671,3.2078,2369.6,2369.2,1.2005]
[1726239500873,3.2078,2369.3,2369.1,0.42207]
[1726239501070,3.2078,2369.6,2369.0,1.311]
[1726239501370,3.6298,2369.6,2369.2,0.42205]
[1726239501575,3.2078,2369.6,2369.0,1.311]
[1726239501767,3.62987,2369.2,2369.0,1.311]
[1726239501970,0.42208,2369.1,2369.0,1.311]
[1726239502169,0.42208,2369.1,2368.9,1.293]
[1726239502373,3.2078,2369.2,2369.0,0.42209]
[1726239502567,3.2078,2369.2,2368.9,1.293]
[1726239502770,0.42213,2368.9,2368.6,1.0477]
[1726239502965,0.4221,2369.0,2368.7,0.42214]
[1726239503178,0.4221,2369.0,2368.6,1.0477]
[1726239503179,1.37099,2369.1,2368.8,0.42212]
[1726239503769,1.37099,2369.1,2368.6,1.0477]
[1726239504073,3.62992,2368.9,2368.6,1.0477]
[1726239504374,3.2078,2368.9,2368.6,1.0477]
[1726239504675,3.62992,2368.9,2368.6,1.46985]
[1726239505876,3.2078,2368.9,2368.6,1.0477]
[1726239506272,0.42217,2368.6,2368.3,3.7122]
[1726239506576,0.42217,2368.6,2368.3,0.4222]
[1726239506977,0.42221,2368.4,2368.1,1.44745]
[1726239507182,0.42222,2368.3,2368.1,1.0252]
[1726239507981,3.2078,2368.4,2368.1,1.0252]
[1726239508176,1.0139,2368.5,2368.2,0.42222]
[1726239508537,3.2078,2368.4,2368.1,1.44744]
[1726239508783,3.2078,2368.4,2368.2,0.42223]
[1726239508980,1.43609,2368.5,2368.1,1.0252]
[1726239509182,3.63,2368.4,2368.1,1.0252]
[1726239509381,3.2078,2368.4,2367.9,0.42229]
[1726239509582,0.42225,2368.2,2367.8,7.9103]
[1726239509785,0.42226,2368.1,2367.8,7.9103]
[1726239510260,0.42226,2368.1,2367.8,4.198]
[1726239510479,1.0556,2368.2,2367.5,4.72405]
[1726239510681,4.1527,2368.0,2367.5,4.72405]
[1726239510882,0.4223,2367.9,2367.5,4.3017]
[1726239511076,0.42231,2367.8,2367.5,4.3017]
[1726239511279,0.9449,2368.0,2367.5,4.3017]
[1726239511473,1.36717,2368.0,2367.7,3.29]
[1726239511888,1.36717,2368.0,2367.6,0.42233]
[1726239512086,0.42229,2367.9,2367.6,0.42233]
[1726239512288,3.63009,2367.9,2367.6,0.42233]
[1726239512488,3.63009,2367.9,2367.5,4.72405]
[1726239512783,3.2078,2367.8,2367.3,0.9742]
[1726239512984,3.2078,2367.5,2367.1,0.9964]
[1726239513180,0.42237,2367.5,2367.1,1.41883]
[1726239513390,4.3147,2367.7,2367.1,0.9964]
[1726239513391,0.42239,2367.4,2367.1,0.9964]
[1726239513574,3.63018,2367.4,2367.1,0.9964]
[1726239513782,0.4224,2367.3,2367.1,0.9964]
[1726239513979,0.4224,2367.3,2366.9,5.68956]
[1726239513980,0.42244,2367.1,2366.7,7.9105]
[1726239514185,1.05595,2367.4,2366.7,4.198]
[1726239514186,0.42246,2367.0,2366.7,4.198]
[1726239514386,1.0278,2367.2,2366.6,1.9965]
[1726239514690,0.42244,2367.1,2366.6,1.9965]
[1726239514993,3.2078,2367.0,2366.6,1.9965]
[1726239515189,3.63027,2366.9,2366.6,1.9965]
[1726239515396,3.63027,2366.9,2366.7,0.4225]
[1726239515397,3.2078,2366.9,2366.7,0.4225]
[1726239515687,3.63025,2367.0,2366.6,2.41901]
[1726239515884,0.42247,2366.9,2366.6,1.9965]
[1726239516093,3.63026,2367.0,2366.6,2.41902]
[1726239516712,0.42247,2366.9,2366.6,1.9965]
[1726239516785,0.42249,2366.8,2366.6,1.9965]
[1726239517084,3.2078,2367.0,2366.6,1.9965]
[1726239517085,0.42248,2366.9,2366.6,1.9965]
[1726239517296,3.63026,2367.0,2366.6,2.41901]
[1726239517482,0.42247,2366.9,2366.6,1.9965]
[1726239517688,0.42247,2366.9,2366.6,0.9762]
[1726239518085,3.63026,2367.0,2366.6,1.39872]
[1726239518584,3.2078,2366.9,2366.3,1.0239]
[1726239518787,0.42257,2366.4,2366.0,2.41642]
[1726239518979,3.63037,2366.4,2366.0,2.41642]
[1726239519185,0.42258,2366.3,2366.0,1.9938]
[1726239519491,3.2078,2366.4,2366.0,1.9938]
[1726239519793,2.01999,2366.5,2365.6,4.198]
[1726239519794,0.42265,2365.9,2365.6,4.198]
[1726239519986,3.2078,2366.0,2365.5,1.027]
[1726239520292,3.2078,2365.9,2365.5,1.027]
[1726239520487,0.42264,2366.0,2365.6,0.42269]
[1726239520891,3.63044,2366.0,2365.6,0.42269]
[1726239521186,0.42261,2366.2,2365.8,0.42266]
[1726239521388,3.2078,2366.0,2365.8,0.42266]
[1726239521696,3.2078,2366.0,2365.7,0.42267]
[1726239521898,0.42263,2366.0,2365.7,0.42267]
[1726239522392,3.2078,2366.3,2365.5,1.027]
[1726239522590,0.4226,2366.2,2365.8,0.42266]
[1726239522894,0.4226,2366.2,2365.9,0.42264]
[1726239523990,0.42261,2366.1,2365.8,0.42265]
[1726239524986,0.42264,2366.0,2365.5,1.027]
[1726239525186,3.2078,2366.3,2365.9,0.42264]
[1726239525388,3.2078,2366.3,2366.0,0.42262]
[1726239525389,3.63039,2366.3,2366.0,0.42262]
[1726239525695,0.42261,2366.1,2365.9,0.42264]
[1726239525891,0.42261,2366.1,2365.5,2.08378]
[1726239525892,0.4226,2366.2,2366.0,0.42263]
[1726239526195,0.42259,2366.3,2365.7,5.21359]
[1726239526403,0.9636,2366.5,2365.7,0.9491]
[1726239526404,1.0564,2366.4,2365.7,0.9491]
[1726239526603,0.42262,2366.1,2365.7,0.9491]
[1726239526793,0.42262,2366.1,2365.9,0.42264]
[1726239526988,0.4226,2366.2,2366.0,0.42262]
[1726239527184,3.2078,2366.3,2365.7,4.1569]
[1726239527390,0.9636,2366.5,2366.1,0.4226]
[1726239527692,3.63038,2366.3,2366.1,0.4226]
[1726239528093,3.2078,2366.3,2366.2,0.42259]
[1726239528294,0.42256,2366.4,2366.2,0.42259]
[1726239528792,3.2078,2366.3,2366.2,0.42259]
[1726239528998,3.2078,2366.3,2365.8,1.018]
[1726239528999,3.63038,2366.3,2366.1,0.4226]
[1726239529190,0.4226,2366.2,2366.0,0.42262]
[1726239529389,1.0564,2366.4,2365.9,0.42263]
[1726239529595,1.0564,2366.4,2365.8,1.018]
[1726239529596,3.2078,2366.3,2365.8,1.018]
[1726239529891,3.2078,2366.3,2365.7,4.1569]
[1726239529892,0.42264,2366.0,2365.7,0.9491]
[1726239530094,0.4226,2366.2,2366.0,0.42262]
[1726239530293,0.42261,2366.1,2365.9,0.42263]
[1726239530597,0.4226,2366.2,2366.0,0.42263]
[1726239530792,0.42259,2366.2,2366.0,0.42261]
[1726239530990,3.2078,2366.3,2365.7,2.00579]
[1726239531192,0.4226,2366.2,2366.1,0.42261]
[1726239531391,0.42262,2366.1,2365.9,0.42264]
[1726239531988,3.2078,2366.0,2365.9,0.42265]
[1726239532303,0.42258,2366.3,2366.1,0.4226]
[1726239532500,4.1714,2366.5,2365.8,1.05665]
[1726239532694,0.42258,2366.3,2366.1,0.4226]
[1726239533010,0.42258,2366.3,2365.8,1.05665]
[1726239533299,4.1714,2366.5,2366.2,0.42258]
[1726239533492,4.1714,2366.5,2365.9,1.05661]
[1726239533691,0.42257,2366.4,2366.2,0.42258]
[1726239533899,4.59395,2366.5,2366.4,0.42256]
[1726239534304,4.59395,2366.5,2366.2,1.0036]
[1726239534305,8.397,2366.5,2366.2,1.0036]
[1726239534602,0.42259,2366.2,2366.1,1.4063]
[1726239535386,0.42259,2366.2,2366.1,0.9837]
[1726239535603,0.42261,2366.1,2366.0,1.41021]
[1726239535803,0.4226,2366.2,2366.1,0.42261]
[1726239536507,0.42261,2366.2,2366.1,0.4226]
[1726239536899,0.42261,2366.1,2366.0,1.41022]
[1726239537396,0.42261,2366.1,2366.0,0.9876]
[1726239537802,0.42261,2366.1,2366.0,1.41022]
[1726239538099,4.64901,2366.1,2366.0,0.42262]
[1726239538300,0.42261,2366.1,2366.0,0.42262]
[1726239539301,0.42262,2366.1,2366.0,0.42263]
[1726239539508,0.4226,2366.2,2366.1,0.42261]
[1726239540201,0.42261,2366.2,2366.1,0.42261]
[1726239540525,0.4226,2366.2,2366.1,0.4226]
[1726239540891,0.42261,2366.1,2366.0,0.42261]
[1726239541299,3.63039,2366.3,2366.2,0.42259]
[1726239541514,0.4226,2366.2,2366.1,0.4226]
[1726239542303,5.31996,2366.5,2366.0,1.05658]
[1726239542495,0.42258,2366.3,2366.2,0.42258]
[1726239543194,0.9636,2366.5,2366.0,1.05658]
[1726239543502,3.2078,2366.9,2366.4,3.3]
[1726239543701,3.2078,2366.9,2366.8,0.42249]
[1726239544002,0.42246,2367.0,2366.7,0.42249]
[1726239544307,3.2078,2366.9,2366.8,0.42249]
[1726239544894,3.2078,2366.9,2366.6,1.0332]
[1726239545114,3.2078,2366.9,2366.8,0.42249]
[1726239545299,1.0208,2367.1,2366.8,0.42249]
[1726239545502,1.0208,2367.1,2366.8,0.42247]
[1726239546406,1.0208,2367.1,2366.9,0.42247]
[1726239546702,1.0208,2367.1,2366.8,0.42248]
[1726239547203,1.44324,2367.1,2366.7,0.42249]
[1726239547406,1.44324,2367.1,2366.8,0.42248]
[1726239547407,1.0208,2367.1,2366.8,0.42248]
[1726239548104,1.0208,2367.1,2366.6,1.0332]
[1726239548601,1.0208,2367.1,2366.8,0.42248]
[1726239549702,1.0208,2367.1,2366.6,1.0332]
[1726239549903,3.2078,2367.3,2367.0,0.42244]
[1726239550114,3.6302,2367.3,2366.9,0.42246]
[1726239550910,3.6302,2367.3,2366.6,4.241]
[1726239551109,3.6302,2367.3,2366.9,0.42245]
[1726239551306,3.2078,2367.3,2366.6,4.241]
[1726239551504,0.42245,2367.0,2366.7,0.42249]
[1726239551703,3.2078,2367.3,2366.9,0.42246]
[1726239551906,3.2078,2367.0,2366.6,1.0332]
[1726239552118,1.44728,2366.9,2366.6,1.45571]
[1726239552406,3.2078,2367.0,2366.6,1.45571]
[1726239552605,4.65506,2367.0,2366.6,1.45571]
[1726239552795,0.42247,2366.9,2366.6,1.45571]
[1726239553100,0.42248,2366.9,2366.6,1.0332]
[1726239553408,4.2326,2367.0,2366.6,1.0332]
[1726239553409,5.33162729,2367.0,2366.6,1.0332]
[1726239553803,2.50889729,2366.9,2366.6,1.0332]
[1726239554004,2.08642729,2366.9,2366.6,1.0332]
[1726239554405,2.50890729,2366.9,2366.6,1.45572]
[1726239554974,2.50890729,2366.9,2366.6,1.0332]
[1726239555400,2.08642729,2366.9,2366.6,1.0332]
[1726239555598,0.42252,2366.6,2366.4,0.9706]
[1726239555803,4.72934729,2366.7,2366.4,1.39315]
[1726239556211,1.09902729,2366.6,2366.4,0.9706]
[1726239556511,1.52154729,2366.6,2366.4,0.9706]
[1726239556808,1.09902729,2366.6,2366.4,0.9706]
[1726239557111,1.52154729,2366.6,2366.4,0.9706]
[1726239557407,1.52154729,2366.6,2366.4,1.39316]
[1726239557611,1.09902729,2366.5,2366.4,0.9706]
[1726239557805,1.09902729,2366.5,2366.4,1.39316]
[1726239558512,1.63583272,2366.5,2366.4,1.39316]
[1726239558918,1.10467316,2366.5,2366.4,1.39316]
[1726239559909,1.10467316,2366.5,2366.4,0.9706]
[1726239560103,1.63583272,2366.5,2366.4,1.39315]
[1726239560909,1.63583272,2366.6,2366.5,0.42254]
[1726239561475,1.65767084,2366.6,2366.5,0.42254]
[1726239561721,5.84028482,2366.7,2366.5,0.42254]
[1726239561916,0.42252,2366.6,2366.5,0.42254]
[1726239562214,2.20997482,2366.6,2366.5,0.42254]
[1726239562416,5.84029482,2366.7,2366.5,0.42254]
[1726239562602,2.20997482,2366.6,2366.5,0.42254]
[1726239563416,2.63249482,2366.6,2366.4,1.39314]
[1726239563720,1.65784551,2366.5,2366.4,1.39314]
[1726239568511,2.08038551,2366.5,2366.4,0.9706]
[1726239568716,2.08038551,2366.5,2366.4,1.39316]